[Event "101st Irish Championship 2022"]
[Site "Dublin"]
[Date "2022.07.05"]
[Round "4.6"]
[White "Fox, Anthony"]
[Black "Carroll, Peter"]
[Result "0-1"]
[ECO "B26"]
[WhiteElo "1945"]
[BlackElo "2116"]
[Annotator "TA"]
[PlyCount "140"]
[EventDate "2022.07.05"]
[EventType "swiss"]
[EventCountry "IRL"]
[SourceTitle "playchess.com"]
[Source "ChessBase"]
[SourceQuality "1"]
[TimeControl "40/6300+30:1800+30"]

{[%evp 17,140,-17,5,0,1,0,-6,-8,-8,-5,16,0,9,1,18,0,0,0,22,0,0,-37,-16,-21,-20,-21,0,-77,-73,-70,-62,-80,-76,-84,-51,-79,-51,-115,-63,-119,-118,-334,-319,-335,-308,-489,-239,-236,-143,-181,-134,-154,-146,-152,-144,-172,-163,-148,-140,-164,-130,-138,-140,-143,-13,-6,0,-43,0,-21,-29,-21,-25,-37,-30,-43,-30,-64,-31,-56,-32,-40,-18,-36,-24,-108,-126,-149,-149,-271,-271,-260,-252,-253,-220,-298,-246,-291,-268,-298,-291,-283,-284,-429,-225,-811,-802,-850,-871,-705,-337,-1328,-1312,-1320,-1348,-939,-1114,-2282,-2016,-2378,-2344,-29971,-29973,-5222,-1795]} 1. e4 {[%emt 0:00:03]} c5 {[%emt 0:00:03]} 2. Nc3 {[%emt 0:00:11]} Nc6 {[%emt 0:00:07]} 3. g3 {[%emt 0:00:30]} g6 {[%emt 0:00:06]} 4. Bg2 {[%emt 0:00:08]} Bg7 {[%emt 0:00:06]} 5. d3 {[%emt 0:00:15]} Rb8 {[%emt 0:00:09]} 6. Be3 {[%emt 0:01:11]} b5 {[%emt 0:01:11][%cal Bb7b5,Bb5b4][%mdl 32]} 7. Qd2 {[%emt 0:01:40]} b4 {[%emt 0:00:22]} 8. Nd1 {[%emt 0:00:28]} d6 {[%emt 0:00:06]} 9. Ne2 {[%emt 0:01:11] 9.f4 is vanishing.} Qb6 {[%emt 0:00:37]} 10. O-O {[%emt 0:02:48] B26: Closed Sicilian: 3 g3, lines with early Be3.} Nd4 {[%emt 0:06:43]} 11. c3 {[%emt 0:21:20]} Nxe2+ {[%emt 0:04:15]} 12. Qxe2 {[%emt 0:00:10] The position is equal.} bxc3 {[%emt 0:00:06]} 13. bxc3 {[%emt 0:00:13]} Ba6 {[%emt 0:10:43]} 14. Rc1 {[%emt 0:03:14]} Nf6 {[%emt 0:03:19]} 15. f4 {[%emt 0:06:40] [#]} O-O $146 {[%emt 0:02:05]} ({Predecessor:} 15... Nd7 16. Bh3 Qc6 17. c4 O-O 18. Nc3 Nb6 19. Bg2 Qd7 20. h4 Na4 21. Nxa4 Qxa4 {½-½ (42) Nedostup,D (2044)-Egyed,G (1997) Liptovsky Mikulas 2011}) 16. g4 {[%emt 0:03:49]} Nd7 {[%emt 0:00:22]} 17. g5 {[%emt 0:04:57]} Qb5 {[%emt 0:11:28]} 18. Nf2 {[%emt 0:08:51]} Qa5 {[%emt 0:02:28]} 19. Qd2 {[%emt 0:08:32]} Qa3 {[%emt 0:03:13]} 20. Rc2 {[%emt 0:01:11] Prevents Rb2.} Bb5 {[%emt 0:06:06]} 21. Qc1 {[%emt 0:12:08]} Qa5 {[%emt 0:04:50]} 22. Qa1 {[%emt 0:06:59]} (22. c4 $11 Ba4 23. Re2) 22... Ba4 $17 {[%emt 0:04:06]} 23. Rcc1 {[%emt 0:00:37]} Rb6 {[%emt 0:01:08]} 24. Rfe1 {[%emt 0:02:38]} Rfb8 {[%emt 0:11:21]} 25. Re2 {[%emt 0:01:19] Prevents Rb2.} Rb5 {[%emt 0:00:46]} 26. Bh3 {[%emt 0:02:04]} e6 {[%emt 0:02:47]} 27. Bg4 {[%emt 0:05:20]} ({Better is} 27. Ng4 $15) 27... Qb6 {[%emt 0:02:23]} (27... R5b7 $17) 28. Ree1 {[%emt 0:02:59]} (28. d4 $15) 28... Rb2 {[%emt 0:03:06] White must now prevent ...Qa5.} 29. h4 $2 {[%emt 0:02:13]} (29. Bd1 $17 Bxd1 30. Nxd1) 29... Qa5 $19 {[%emt 0:07:40]} 30. d4 {[%emt 0:01:44]} Bc2 {[%emt 0:02:00]} 31. a3 {[%emt 0:02:18]} (31. Re2 $142 Rxa2 32. Qxa2 Qxa2 33. Rcxc2) 31... cxd4 {[%emt 0:06:30]} (31... Qxc3 $142 32. dxc5 Nxc5) 32. cxd4 {[%emt 0:01:38]} Qa4 {[%emt 0:13:00][%cal Oc2e4]} 33. e5 {[%emt 0:00:49]} Qb3 {[%emt 0:04:00]} ({Black should play} 33... h5 $1 $19 {[%cal Rh5g4]} 34. Bd1 (34. gxh6 $2 Bxh6 35. exd6 Qb3 $17) 34... Bxd1 35. Nxd1 R2b3) 34. Bd1 {[%emt 0:01:39]} Ra2 $1 {[%emt 0:00:49] 0x0.001e396bd69bdp-1022s more active pieces.} (34... dxe5 35. Rxc2 Rxc2 36. dxe5 $15) (34... Bxd1 35. Nxd1 Ra2 36. Qc3 dxe5 37. Qxb3 Rxb3 38. fxe5 $17) 35. Bxc2 {[%emt 0:01:55]} Qxa3 {[%emt 0:00:31]} ({Don't do} 35... Rxa1 36. Bxb3 Rxc1 37. Rxc1 $18) ({Worse is} 35... Rxc2 36. Rxc2 Qxc2 37. Qc1 $11) 36. Ba4 {[%emt 0:05:01][%cal Oa4d7]} Qxa4 {[%emt 0:03:48]} ({Resist} 36... Rxa1 37. Rxa1 Qb4 38. Bxd7 $16) 37. Qc3 {[%emt 0:00:28]} d5 {[%emt 0:00:06]} 38. Qc6 {[%emt 0:01:15]} Qxc6 {[%emt 0:00:50]} 39. Rxc6 {[%emt 0:00:02]} Nb6 $1 {[%emt 0:01:04]} 40. Rb1 {[%emt 0:00:43] [#]} Bf8 {[%emt 0:00:35]} (40... Rf8 $1 $17 {And now ...h5 would win.} 41. Rc7 Nc4) 41. Ng4 {[%emt 0:31:26]} Bg7 {[%emt 0:09:38]} 42. Rb3 {[%emt 0:00:00][%cal Oh4h5]} Ra4 {[%emt 0:01:28]} (42... Rf8 $5 {[%cal Rb6c4]} 43. f5 gxf5 44. Nf6+ Kh8 $17) 43. Kf2 {[%emt 0:00:00]} Rc4 {[%emt 0:00:09]} 44. Rc5 {[%emt 0:00:00]} Rc8 {[%emt 0:03:08]} 45. Ra3 {[%emt 0:00:00]} Rc7 {[%emt 0:01:26]} 46. Rxc7 {[%emt 0:00:00]} Rxc7 {[%emt 0:01:30]} 47. Rb3 {[%emt 0:00:00]} Rc4 {[%emt 0:03:43]} 48. Ke2 {[%emt 0:00:00]} Kf8 {[%emt 0:01:05]} 49. Kd3 {[%emt 0:00:00]} Ke8 {[%emt 0:00:19]} 50. Bd2 {[%emt 0:00:00]} Kd7 {[%emt 0:02:13]} 51. Ra3 {[%emt 0:00:00] [#]} (51. Rb1 $11 {remains equal.}) 51... Ra4 $1 $17 {[%emt 0:01:14] Black keeps a firm grip on the game.} 52. Rxa4 {[%emt 0:00:00]} Nxa4 {[%emt 0:00:02][%mdl 4096] Endgame KBN-KBN} 53. Kc2 {[%emt 0:00:00] Inhibits Nb2.} (53. Ne3 $17 {is a better defense.}) 53... Kc6 $19 {[%emt 0:02:23]} 54. Kb3 {[%emt 0:00:00]} Kb5 {[%emt 0:00:23]} 55. Bb4 {[%emt 0:00:00]} a5 {[%emt 0:01:28]} 56. Be7 {[%emt 0:00:00]} Nb6 {[%emt 0:00:05]} 57. Ne3 {[%emt 0:00:00]} h5 {[%emt 0:03:01]} 58. Bd6 {[%emt 0:00:00]} Nd7 {[%emt 0:01:26]} 59. Nc2 {[%emt 0:00:00]} Bf8 {[%emt 0:00:47]} 60. Na3+ {[%emt 0:00:00]} (60. Ne1 $142) 60... Ka6 {[%emt 0:00:29]} (60... Kb6 $142 {Strongly threatening ...Bxd6.} 61. Ka4 Bxd6 62. exd6 Ka6) 61. Bxf8 $2 {[%emt 0:02:06]} (61. Nc2) 61... Nxf8 {[%emt 0:00:02] KN-KN} 62. Nb1 {[%emt 0:00:13]} Nd7 {[%emt 0:00:28]} 63. Nc3 {[%emt 0:00:11]} Nb6 {[%emt 0:00:37]} (63... Nb8 $142 {Threatens to win with ...Nc6.} 64. Ne2 Nc6) 64. Ka3 $2 {[%emt 0:01:18]} (64. Ne2 Nc8 65. f5 gxf5 66. g6 fxg6 67. Nf4) 64... Nc4+ {[%emt 0:00:36]} 65. Kb3 {[%emt 0:03:07]} Nd2+ {[%emt 0:00:35]} 66. Ka4 {[%emt 0:00:35]} Nf3 {[%emt 0:00:21][%csl LRd4,LRh4]} 67. Nb5 {[%emt 0:00:23]} Nxh4 {[%emt 0:00:13]} 68. Nd6 {[%emt 0:00:20]} Nf5 {[%emt 0:00:23] ( -> ...h4)} 69. Nxf7 {[%emt 0:00:28]} h4 {[%emt 0:00:21]} 70. Nh6 {[%emt 0:00:33]} Nxd4 {[%emt 0:00:33] Weighted Error Value: White=0.35/Black=0.24 (precise)} (70... Ne3 $142 71. f5 h3) 0-1

[Event "101st Irish Championship 2022"]
[Site "Dublin"]
[Date "2022.07.05"]
[Round "4.7"]
[White "O'Connell, Gerard"]
[Black "Venkatesan, Kavin"]
[Result "1-0"]
[ECO "E17"]
[WhiteElo "2052"]
[BlackElo "2076"]
[Annotator "TA"]
[PlyCount "159"]
[EventDate "2022.07.05"]
[EventType "swiss"]
[EventCountry "IRL"]
[SourceTitle "playchess.com"]
[Source "ChessBase"]
[SourceQuality "1"]
[TimeControl "40/6300+30:1800+30"]

{[%evp 13,159,15,29,-9,19,17,23,3,23,13,19,0,2,0,0,0,0,0,0,-18,0,-4,0,-8,8,0,25,20,26,0,0,0,49,46,47,-24,-25,-29,-27,-36,0,0,0,0,0,0,0,0,0,0,44,50,51,50,72,11,11,11,22,25,29,11,11,11,11,11,11,11,11,11,13,8,8,8,8,8,8,8,8,8,46,8,296,324,318,311,311,304,304,304,297,8,23,23,23,23,202,0,8,0,150,8,8,8,8,8,8,8,2220,1208,1361,1170,1311,1162,1181,685,1731,2001,985,478,29965,29966,29967,29967,29967,29965,29963,29943,29965,29963,29977,29978,29978,29979,29979,29980,29980,29981,29981,29982,29982,29983,29983,29984,29985,29986,29986,29987]} 1. d4 {[%emt 0:00:03]} Nf6 {[%emt 0:00:07]} 2. Nf3 {[%emt 0:00:07]} e6 {[%emt 0:00:16]} 3. g3 {[%emt 0:00:07]} d5 {[%emt 0:03:10]} 4. Bg2 {[%emt 0:00:09]} Be7 {[%emt 0:01:25]} 5. O-O {[%emt 0:00:09]} O-O {[%emt 0:00:52]} 6. c4 {[%emt 0:00:35]} b6 {[%emt 0:09:45]} 7. Qc2 {[%emt 0:03:31]} Bb7 {[%emt 0:01:31]} 8. Bg5 {[%emt 0:08:05] E17: Queen's Indian: 4 g3 Bb7 5 Bg2 Be7.} h6 {[%emt 0:09:43]} 9. Bxf6 {[%emt 0:00:31]} Bxf6 {[%emt 0:00:13]} 10. Nc3 {[%emt 0:00:14] White has an edge.} Na6 {[%emt 0:06:06]} 11. a3 {[%emt 0:04:05] [#]} (11. cxd5 {is interesting.} exd5 12. Ne5 Re8 13. Rad1) 11... c6 $146 {[%emt 0:12:55]} (11... Qe7 {seems wilder.} 12. Ne5 Rad8 13. e3 c5) ({Predecessor:} 11... c5 12. Rfd1 Rc8 13. cxd5 exd5 14. Rac1 Nc7 15. dxc5 bxc5 16. Ne1 Bc6 17. e3 Bxc3 18. bxc3 {½-½ (54) Schmidt,L (2403)-Meiners,E (2345) ICCF email 2015}) 12. cxd5 {[%emt 0:06:30]} cxd5 {[%emt 0:00:30]} 13. Rfd1 {[%emt 0:13:25]} Rc8 {[%emt 0:02:42]} 14. Qd2 {[%emt 0:00:45]} Qe7 {[%emt 0:02:43]} 15. Rac1 {[%emt 0:01:30]} Rfd8 {[%emt 0:01:30]} 16. Qf4 {[%emt 0:02:11]} Rc4 {[%emt 0:13:33]} 17. Qe3 {[%emt 0:04:43]} Nb8 {[%emt 0:07:07]} 18. Qd2 {[%emt 0:09:19]} Nd7 {[%emt 0:03:35]} 19. e3 {[%emt 0:00:24]} Nf8 {[%emt 0:03:11]} 20. Bf1 {[%emt 0:01:06]} Rcc8 {[%emt 0:00:35]} 21. Ne5 {[%emt 0:07:26]} Bxe5 {[%emt 0:03:53]} 22. dxe5 {[%emt 0:00:10]} f6 {[%emt 0:01:13]} (22... Nd7 $11) 23. exf6 {[%emt 0:02:39]} Qxf6 {[%emt 0:00:17][%cal Od5d4]} 24. Nb5 {[%emt 0:00:54] Inhibits d4.} (24. f4 $14) 24... d4 $11 {[%emt 0:05:02] ( -> ...Qf3)} 25. Bg2 {[%emt 0:02:41] Prevents Qf3.} ({Not} 25. Nxd4 $2 Rxd4 $1 {[%mdl 512]} 26. Qxd4 (26. exd4 $2 Qf3 $19) 26... Qf3 $19) 25... dxe3 {[%emt 0:07:07]} 26. Qxe3 {[%emt 0:01:02]} Rxc1 {[%emt 0:00:49]} 27. Rxc1 {[%emt 0:04:17]} Qxb2 {[%emt 0:02:17]} 28. Nxa7 {[%emt 0:15:56]} Rd3 {[%emt 0:05:28]} 29. Qxd3 {[%emt 0:08:13]} Qxc1+ {[%emt 0:00:07]} 30. Bf1 {[%emt 0:00:24]} Qc7 {[%emt 0:02:47]} 31. Be2 {[%emt 0:06:59]} Be4 {[%emt 0:04:02]} 32. Qxe4 {[%emt 0:01:37]} Qxa7 $14 {[%emt 0:00:02][%mdl 4096] Endgame KQB-KQN} 33. a4 {[%emt 0:00:25]} Qd7 {[%emt 0:01:06]} 34. Bd3 {[%emt 0:01:18] White is more active.} (34. Bf3 $16) 34... Qd5 $11 {[%emt 0:00:49]} 35. Qe2 {[%emt 0:03:18]} Qc6 {[%emt 0:02:26]} 36. Bb5 {[%emt 0:00:14]} Qd6 {[%emt 0:00:09]} 37. Kg2 {[%emt 0:00:28]} Qd5+ {[%emt 0:01:09]} 38. Qf3 {[%emt 0:00:19]} Qxf3+ {[%emt 0:00:23]} 39. Kxf3 {[%emt 0:00:06] KB-KN} Kf7 {[%emt 0:00:05]} 40. Ke4 {[%emt 0:00:24]} Ke7 {[%emt 0:00:05]} 41. f4 {[%emt 0:32:35]} Kd6 {[%emt 0:30:40]} 42. h4 {[%emt 0:01:12]} Nh7 {[%emt 0:00:00]} 43. Kd4 {[%emt 0:00:00]} Nf6 {[%emt 0:00:00]} 44. Be2 {[%emt 0:00:00] Against Nh5} Ng8 {[%emt 0:00:00]} 45. Kc4 {[%emt 0:00:00]} Nf6 {[%emt 0:00:00]} 46. Kb5 {[%emt 0:00:00]} Nd7 {[%emt 0:00:00]} 47. Bg4 {[%emt 0:00:00]} Nc5 $2 {[%emt 0:00:00][%mdl 8192]} (47... Nf6 $1 $11) 48. Bf3 $18 {[%emt 0:00:00]} ({Worse is} 48. Kxb6 Nxa4+ 49. Kb5 Nc3+ 50. Kc4 Ne4 $15) 48... Nd7 {[%emt 0:00:00]} 49. Bc6 {[%emt 0:00:00]} Nb8 {[%emt 0:00:00]} 50. Be8 {[%emt 0:00:00]} Kc7 {[%emt 0:00:00]} 51. h5 {[%emt 0:04:21] Strongly threatening g4.} ({Inferior is} 51. Bf7 Nc6 $11) 51... Kb7 {[%emt 0:00:00]} 52. Bf7 $2 {[%emt 0:01:26]} ({White should play} 52. Kc4 $18) 52... Nc6 {[%emt 0:00:00]} 53. Kc4 {[%emt 0:00:12]} Nd8 {[%emt 0:00:00]} 54. Bg8 {[%emt 0:02:05][%cal Of4f5] Hoping for f5!} Kc7 $2 {[%emt 0:00:00]} (54... Kc6 $11 {and Black is okay.}) 55. Kd4 $2 {[%emt 0:00:18]} (55. f5 $1 $18) 55... Nc6+ $11 {[%emt 0:01:53]} 56. Kc4 {[%emt 0:01:45]} ({Better is} 56. Kc3 $11) 56... Nd8 $16 {[%emt 0:00:11] [#]} 57. Bh7 {[%emt 0:00:22]} (57. f5 $1 $16) 57... Nc6 $11 {[%emt 0:02:35]} 58. Be4 {[%emt 0:00:25] Threatens to win with Bxc6.} Nb8 {[%emt 0:00:38]} 59. f5 {[%emt 0:01:12]} exf5 {[%emt 0:00:22]} 60. Bxf5 {[%emt 0:00:01] Black must now prevent Kd5.} Nc6 $2 {[%emt 0:01:02][%mdl 8192] [#] White now steadily converts the win.} (60... Kd6 $11) 61. Kd5 $1 $18 {[%emt 0:01:04]} Nd8 {[%emt 0:02:29]} 62. Be6 {[%emt 0:00:18]} Nc6 {[%emt 0:00:42]} 63. Bg4 {[%emt 0:00:51]} Nd8 {[%emt 0:00:14]} 64. Ke5 {[%emt 0:00:21] Kf5 is the strong threat.} Kc6 {[%emt 0:02:25]} 65. Kf5 {[%emt 0:00:11]} Nf7 {[%emt 0:00:30]} 66. Be2 {[%emt 0:00:24] White threatens Kg6 and mate.} Kc5 {[%emt 0:02:42]} (66... Ng5 $18 67. Kg6 Kd6 68. Kxg7 Ke6 69. Bc4+ Ke5 70. Kxh6 Kf6) 67. Kg6 {[%emt 0:00:12][%csl LRf7,LRg7] White mates.} Nd6 {[%emt 0:00:08]} 68. g4 {[%emt 0:00:15]} Kb4 {[%emt 0:00:50]} 69. Bd1 {[%emt 0:00:23]} Ne4 {[%emt 0:00:40]} 70. Kxg7 {[%emt 0:00:34]} Nf2 {[%emt 0:00:09]} 71. Bf3 {[%emt 0:00:29]} Kxa4 {[%emt 0:00:13]} 72. Kxh6 {[%emt 0:00:06]} b5 {[%emt 0:00:37]} 73. g5 {[%emt 0:00:06]} b4 {[%emt 0:00:20]} 74. g6 {[%emt 0:00:03]} b3 {[%emt 0:00:15]} 75. g7 {[%emt 0:00:10]} b2 {[%emt 0:00:08]} 76. g8=Q {[%emt 0:00:08]} b1=Q {[%emt 0:00:14]} 77. Qa8+ {[%emt 0:01:34]} Kb3 {[%emt 0:00:07]} 78. Qb7+ {[%emt 0:00:16]} Kc2 {[%emt 0:00:12]} 79. Be4+ {[%emt 0:00:07]} Nxe4 {[%emt 0:00:10]} 80. Qxe4+ {[%emt 0:00:04] Weighted Error Value: White=0.26 (precise) /Black=0.24 (precise)} 1-0

[Event "101st Irish Championship 2022"]
[Site "Dublin"]
[Date "2022.07.05"]
[Round "4.8"]
[White "Doyle, Anthony"]
[Black "O`cuilleanain, Oisin"]
[Result "1/2-1/2"]
[ECO "A05"]
[WhiteElo "2116"]
[BlackElo "1936"]
[Annotator "TA"]
[PlyCount "71"]
[EventDate "2022.07.05"]
[EventType "swiss"]
[EventCountry "IRL"]
[SourceTitle "playchess.com"]
[Source "ChessBase"]
[SourceQuality "1"]
[TimeControl "40/6300+30:1800+30"]

{[%evp 9,71,14,15,0,0,0,0,-3,16,16,16,14,0,12,60,33,38,0,49,38,39,-7,-7,-7,0,0,0,0,0,0,6,0,15,14,26,21,39,30,22,27,150,150,150,150,151,151,151,150,248,85,85,85,85,91,93,14,18,0,0,0,0,0,0,0]} 1. Nf3 {[%emt 0:00:07]} Nf6 {[%emt 0:00:48]} 2. g3 {[%emt 0:00:11]} b5 {[%emt 0:03:26]} 3. Bg2 {[%emt 0:01:13]} Bb7 {[%emt 0:00:11]} 4. O-O {[%emt 0:00:36]} e6 {[%emt 0:00:27]} 5. a4 {[%emt 0:26:01]} b4 {[%emt 0:00:58]} 6. a5 {[%emt 0:04:30] A05: Réti Opening: 1 Nf3 Nf6.} c5 {[%emt 0:10:48]} 7. d3 {[%emt 0:03:02]} Be7 {[%emt 0:05:55]} 8. c3 {[%emt 0:07:52]} O-O {[%emt 0:16:13]} 9. cxb4 {[%emt 0:11:14]} cxb4 {[%emt 0:00:10]} 10. Nbd2 {[%emt 0:00:27] [#]} d6 $146 {[%emt 0:14:04]} ({Predecessor:} 10... Na6 11. Nb3 Rc8 12. Be3 Qc7 13. Qd2 Qb8 14. Rfc1 Nd5 15. Bd4 d6 16. e4 Nf6 {0-1 (40) Teterev,V (2536)-Stupak,K (2526) Minsk 2013}) 11. Nb3 {[%emt 0:00:25]} a6 {[%emt 0:02:32]} (11... Na6 $11) 12. Bd2 {[%emt 0:00:19]} Nc6 {[%emt 0:02:33]} 13. Qb1 {[%emt 0:16:02]} Nd7 {[%emt 0:06:20]} (13... Qd7 $11) 14. Qa2 {[%emt 0:01:35]} Nc5 {[%emt 0:04:40]} 15. Nxc5 {[%emt 0:07:40]} (15. Rfc1 $14) 15... dxc5 $11 {[%emt 0:00:03]} 16. Ne5 {[%emt 0:00:28]} Qc7 {[%emt 0:04:24]} 17. Nxc6 {[%emt 0:00:59]} Bxc6 {[%emt 0:00:05]} 18. Bxc6 {[%emt 0:00:07]} Qxc6 {[%emt 0:00:04]} 19. Rfc1 {[%emt 0:00:38]} Qd5 {[%emt 0:02:16]} 20. Be3 {[%emt 0:01:13] Qxd5 is the strong threat.} Rfc8 {[%emt 0:01:59]} 21. Qc4 {[%emt 0:00:23]} Qb7 {[%emt 0:08:51]} 22. b3 {[%emt 0:01:59]} h5 {[%emt 0:08:19]} 23. Ra2 {[%emt 0:03:31]} Rd8 {[%emt 0:01:32]} 24. Qe4 {[%emt 0:00:43]} Ra7 {[%emt 0:05:47]} (24... Qb5 $11 {keeps the balance.}) 25. Qxb7 $16 {[%emt 0:00:31] White is more active.} (25. Bxc5 $2 Qxe4 26. dxe4 Rc7 $19) 25... Rxb7 {[%emt 0:00:05]} 26. Bxc5 {[%emt 0:04:21]} Rc7 {[%emt 0:00:12]} 27. Rac2 {[%emt 0:00:24]} Rdc8 {[%emt 0:00:14][%cal Rc7c5]} 28. d4 {[%emt 0:00:27]} Bxc5 {[%emt 0:01:39]} (28... e5 $16) 29. dxc5 $2 {[%emt 0:00:53][%mdl 4096] Endgame KRR-KRR} (29. Rxc5 $18 {and the rest is easy.} Rxc5 30. dxc5) 29... Rc6 {[%emt 0:00:22]} 30. Rc4 {[%emt 0:00:18]} Rb8 {[%emt 0:00:03]} 31. Rd1 {[%emt 0:02:11]} Rb5 {[%emt 0:00:40][%csl LRa5,LRc5] [#]} 32. Rd8+ {[%emt 0:01:12]} (32. Rd6 $1 $16 {[%cal Rd6c6]} Rcxc5 33. Rxc5 (33. Rxa6 $2 Rxc4 34. bxc4 b3 $19) 33... Rxc5 34. Rxa6) 32... Kh7 $11 {[%emt 0:00:05] The position is equal.} 33. Rd6 {[%emt 0:00:55]} Rcxc5 {[%emt 0:00:34]} 34. Rxc5 {[%emt 0:00:10]} ({But not} 34. Rxa6 $2 Rxc4 35. bxc4 {[#]} b3 $1 36. cxb5 b2 $19) 34... Rxc5 {[%emt 0:00:04]} 35. Rxa6 {[%emt 0:00:05]} Rc3 {[%emt 0:00:06]} 36. Ra7 {[%emt 0:03:19] Weighted Error Value: White=0.17 (very precise) /Black=0.17 (very precise)} 1/2-1/2

[Event "101st Irish Championship 2022"]
[Site "Dublin"]
[Date "2022.07.05"]
[Round "4.9"]
[White "Ivanov, Andrey A."]
[Black "Cafolla, Peter"]
[Result "1/2-1/2"]
[ECO "B11"]
[WhiteElo "2180"]
[BlackElo "1937"]
[Annotator "TA"]
[PlyCount "71"]
[EventDate "2022.07.05"]
[EventType "swiss"]
[EventCountry "IRL"]
[SourceTitle "playchess.com"]
[Source "ChessBase"]
[SourceQuality "1"]
[TimeControl "40/6300+30:1800+30"]

{[%evp 9,71,-20,-20,-20,-15,-10,-9,-32,-22,-29,2,-45,-8,-46,-20,-58,0,-80,66,75,83,35,39,36,43,19,37,37,63,59,57,58,54,55,55,60,58,56,54,27,58,34,58,60,65,57,54,0,0,0,0,0,0,0,0,0,33,30,30,28,35,11,38,0]} 1. e4 {[%emt 0:00:04]} c6 {[%emt 0:00:21]} 2. Nc3 {[%emt 0:00:30]} d5 {[%emt 0:00:14]} 3. Nf3 {[%emt 0:00:12]} Nf6 {[%emt 0:01:17]} 4. e5 {[%emt 0:15:11]} Ne4 {[%emt 0:00:07]} 5. d3 {[%emt 0:00:39]} Nxc3 {[%emt 0:01:11]} 6. bxc3 {[%emt 0:00:06] B11: Caro-Kann: Two Knights Variation.} e6 {[%emt 0:01:58]} 7. Be2 {[%emt 0:01:42]} c5 {[%emt 0:05:03]} 8. d4 {[%emt 0:01:33] The position is equal.} Nc6 {[%emt 0:04:08]} 9. O-O {[%emt 0:01:37]} Be7 {[%emt 0:01:16]} 10. Re1 {[%emt 0:07:53] [#]} (10. dxc5 $11 O-O 11. c4) 10... O-O $146 {[%emt 0:01:35]} ({Predecessor:} 10... c4 11. Kh1 Qa5 12. Bd2 Ba3 13. Qb1 Rb8 14. Bc1 Qxc3 15. Bxa3 Qxa3 16. Bf1 Bd7 17. Re3 Qe7 {0-1 (55) Tootoosis,H-Newton,G Edmonton 2000}) 11. Bf1 {[%emt 0:03:43]} Bd7 {[%emt 0:06:44]} 12. Rb1 {[%emt 0:07:37]} Qc7 {[%emt 0:04:47]} ({Black should play} 12... c4 $15) 13. Bd3 {[%emt 0:02:18]} (13. Ng5 $11) 13... f6 {[%emt 0:04:46]} (13... c4 $17 14. Bf1 Rab8) 14. exf6 $14 {[%emt 0:03:14] White is more active.} Bxf6 {[%emt 0:05:36]} 15. Ng5 {[%emt 0:01:01]} (15. dxc5 $16 h6 16. c4) 15... Bxg5 {[%emt 0:03:02]} 16. Bxg5 {[%emt 0:00:33][%cal Bc1g5,Bg5h4,Bh4g3][%mdl 32] Qh5 is the strong threat.} c4 {[%emt 0:01:42]} 17. Bf1 {[%emt 0:05:47]} Rf5 {[%emt 0:08:18]} 18. Bh4 {[%emt 0:02:27]} Re8 {[%emt 0:02:53]} 19. Bg3 {[%emt 0:00:38]} Qc8 {[%emt 0:00:05]} 20. Be2 {[%emt 0:04:17]} b6 {[%emt 0:05:51]} 21. Bg4 {[%emt 0:00:23]} Rf7 {[%emt 0:00:23]} 22. Qe2 {[%emt 0:02:31]} Qd8 {[%emt 0:03:58]} 23. f3 {[%emt 0:06:41]} Qf6 {[%emt 0:05:04]} 24. Rbd1 {[%emt 0:03:44]} Qe7 {[%emt 0:06:36]} 25. Qe3 {[%emt 0:02:51]} b5 {[%emt 0:03:51]} 26. Re2 {[%emt 0:03:36]} Qa3 {[%emt 0:05:33]} 27. Rde1 {[%emt 0:00:51]} b4 {[%emt 0:01:54]} 28. Qg5 {[%emt 0:07:14]} (28. cxb4 $1 $14 Qxe3+ 29. Rxe3) 28... h6 {[%emt 0:11:08]} 29. Qh5 {[%emt 0:05:06][%cal Re2e6]} Qxc3 {[%emt 0:08:30]} 30. Bxe6 {[%emt 0:01:25]} Bxe6 {[%emt 0:01:58]} 31. Rxe6 {[%emt 0:00:19]} Rxe6 {[%emt 0:01:32]} 32. Rxe6 {[%emt 0:00:07] Black must now prevent Re8+.} Qa1+ {[%emt 0:03:03]} (32... Ne7 $5 {[%cal Rc3c2]} 33. Bd6 {[#]} b3 $1 34. axb3 (34. Bxe7 $2 b2 $19) 34... Qxc2 $1 35. Rxe7 Rxe7 36. Bxe7 cxb3 37. Qxd5+ Kh7 $11) 33. Re1 {[%emt 0:00:18]} Qxd4+ {[%emt 0:00:27]} 34. Bf2 {[%emt 0:00:07]} Qd2 {[%emt 0:01:59]} 35. Re8+ {[%emt 0:01:14][%mdl 1024] White has compensation.} Rf8 {[%emt 0:00:20][%cal Og8h7] Hoping for ...Kh7!} 36. Rxf8+ {[%emt 0:01:27] Weighted Error Value: White=0.16 (very precise) /Black=0.17 (very precise)} 1/2-1/2